fUSD/lending_fUSD_20240301
["ID","MTS","AMOUNT","RATE_DAILY","PERIOD"]
[316017467,1709326263681,-530.59662562,0.00022136,2]
[316017468,1709326263691,-500.0,0.00022136,2]
[316017469,1709326263700,-500.0,0.00022136,2]
[316017470,1709326263709,-500.0,0.00022136,2]
[316017471,1709326263720,-646.06,0.00022136,2]
[316017472,1709326263729,-630.89,0.00022136,2]
[316017473,1709326263739,-500.0,0.00022136,2]
[316017474,1709326263749,-634.99,0.00022136,2]
[316017475,1709326263758,-517.39605443,0.00022136,2]
[316017476,1709326263767,-500.0,0.00022136,2]
[316017477,1709326263777,-500.0,0.00022136,2]
[316017478,1709326263787,-2872.44,0.00022136,2]
[316017479,1709326263796,-558.26,0.00022136,2]
[316017480,1709326263805,-894.88,0.00022136,2]
[316017481,1709326263815,-586.38,0.00022136,2]
[316017482,1709326263824,-845.35,0.00022136,2]
[316017483,1709326263833,-500.0,0.00022136,2]
[316017484,1709326263843,-906.53,0.00022136,2]
[316017485,1709326263852,-879.47,0.00022136,2]
[316017486,1709326263862,-513.83660678,0.00022136,2]
[316017487,1709326263871,-500.0,0.00022136,2]
[316017488,1709326263881,-724.83,0.00022136,2]
[316017489,1709326263890,-500.0,0.00022136,2]
[316017490,1709326263900,-692.96,0.00022136,2]
[316017491,1709326263909,-986.41,0.00022136,2]
[316017492,1709326263918,-500.0,0.00022136,2]
[316017493,1709326263928,-508.78215857,0.00022136,2]
[316017494,1709326263937,-500.0,0.00022136,2]
[316017495,1709326263947,-1964.17,0.00022136,2]
[316017496,1709326263956,-500.0,0.00022136,2]
[316017497,1709326263966,-500.0,0.00022136,2]
[316017498,1709326264044,-500.0,0.00022136,2]
[316017499,1709326264054,-500.0,0.00022136,2]
[316017500,1709326264064,-500.0,0.00022136,2]
[316017501,1709326264073,-500.0,0.00022136,2]
[316017502,1709326264082,-500.0,0.00022136,2]
[316017503,1709326264091,-500.0,0.00022136,2]
[316017504,1709326264100,-178.07745917,0.00022136,2]
[316017505,1709326264109,-3117.18,0.00022136,2]
[316017506,1709326264118,-680.36,0.00022136,2]
[316017507,1709326264127,-500.0,0.00022136,2]
[316017508,1709326264136,-826.94,0.00022136,2]
[316017509,1709326264145,-500.0,0.00022136,2]
[316017510,1709326264154,-500.0,0.00022136,2]
[316017511,1709326264163,-901.59,0.00022136,2]
[316017512,1709326264173,-14402.31,0.00022136,2]
[316017513,1709326264182,-500.0,0.00022136,2]
[316017514,1709326264191,-797.02,0.00022136,2]
[316017515,1709326264201,-500.0,0.00022136,2]
[316017516,1709326264210,-500.0,0.00022136,2]
[316017517,1709326264220,-649.50123449,0.00022136,2]
[316017518,1709326264230,-1399.82,0.00022136,2]
[316017519,1709326264240,-460.51,0.00022136,2]
[316017520,1709326264251,-1737.31,0.00022136,2]
[316017521,1709326264261,-596.01,0.00022136,2]
[316017522,1709326264271,-1014.67,0.00022136,2]
[316017523,1709326264280,-500.0,0.00022136,2]
[316017524,1709326264290,-500.0,0.00022136,2]
[316017525,1709326264300,-2736.06,0.00022136,2]
[316017526,1709326264309,-1251.49,0.00022136,2]
[316017527,1709326264319,-500.0,0.00022136,2]
[316017528,1709326264328,-2070.69,0.00022136,2]
[316017529,1709326264337,-976.83,0.00022136,2]
[316017530,1709326264348,-500.0,0.00022136,2]
[316017531,1709326264359,-687.56,0.00022136,2]
[316017532,1709326264369,-500.0,0.00022136,2]
[316017533,1709326264379,-1382.52,0.00022136,2]
[316017534,1709326264388,-500.0,0.00022136,2]
[316017535,1709326264398,-1480.18,0.00022136,2]
[316017536,1709326264407,-514.14812018,0.00022136,2]
[316017537,1709326264417,-500.0,0.00022136,2]
[316017538,1709326264426,-889.93,0.00022136,2]
[316017539,1709326264437,-500.0,0.00022136,2]
[316017540,1709326264446,-500.0,0.00022136,2]
[316017541,1709326264456,-550.85,0.00022136,2]
[316017542,1709326264465,-905.87,0.00022136,2]
[316017543,1709326264475,-500.0,0.00022136,2]
[316017544,1709326264484,-500.0,0.00022136,2]
[316017545,1709326264493,-1370.51,0.00022136,2]
[316017546,1709326264506,-500.0,0.00022136,2]
[316017547,1709326264516,-500.0,0.00022136,2]
[316017548,1709326264525,-867.77,0.00022136,2]
[316017549,1709326264535,-653.52,0.00022136,2]
[316017550,1709326264544,-500.0,0.00022136,2]
[316017551,1709326264553,-2028.88,0.00022136,2]
[316017552,1709326264562,-500.0,0.00022136,2]
[316017553,1709326264571,-500.0,0.00022136,2]
[316017554,1709326264581,-1360.96,0.00022136,2]
[316017555,1709326264589,-505.21,0.00022136,2]
[316017556,1709326264598,-500.0,0.00022136,2]
[316017557,1709326264607,-2542.85,0.00022136,2]
[316017558,1709326264617,-1865.45,0.00022136,2]
[316017559,1709326264626,-1464.06,0.00022136,2]
[316017560,1709326264635,-1121.43,0.00022136,2]
[316017561,1709326264644,-500.0,0.00022136,2]
[316017562,1709326264653,-858.99,0.00022136,2]
[316017563,1709326264662,-500.0,0.00022136,2]
[316017564,1709326264671,-500.0,0.00022136,2]
[316017565,1709326264681,-724.31,0.00022136,2]
[316017566,1709326264690,-1009.65,0.00022136,2]
[316017567,1709326264700,-500.0,0.00022136,2]
[316017568,1709326264709,-500.0,0.00022136,2]
[316017569,1709326264719,-507.03,0.00022136,2]
[316017570,1709326264730,-500.0,0.00022136,2]
[316017571,1709326264739,-2048.99,0.00022136,2]
[316017572,1709326264750,-1664.19,0.00022136,2]
[316017573,1709326264760,-3957.07,0.00022136,2]
[316017574,1709326264769,-802.08,0.00022136,2]
[316017575,1709326264779,-500.0,0.00022136,2]
[316017576,1709326264789,-500.0,0.00022136,2]
[316017577,1709326264799,-646.49,0.00022136,2]
[316017578,1709326264808,-645.24,0.00022136,2]
[316017579,1709326264820,-500.0,0.00022136,2]
[316017580,1709326264829,-500.0,0.00022136,2]
[316017581,1709326264839,-500.0,0.00022136,2]
[316017582,1709326264848,-500.0,0.00022136,2]
[316017583,1709326264858,-500.0,0.00022136,2]
[316017584,1709326264868,-7876.48,0.00022136,2]
[316017585,1709326264877,-599.98,0.00022136,2]
[316017586,1709326264887,-500.0,0.00022136,2]
[316017587,1709326264896,-599.65,0.00022136,2]
[316017588,1709326264905,-1932.99,0.00022136,2]
[316017589,1709326264915,-1034.74,0.00022136,2]
[316017590,1709326264925,-1393.02,0.00022136,2]
[316017591,1709326264933,-1669.12,0.00022136,2]
[316017592,1709326264943,-647.18,0.00022136,2]
[316017593,1709326264952,-500.0,0.00022136,2]
[316017594,1709326264961,-500.0,0.00022136,2]
[316017595,1709326264970,-500.0,0.00022136,2]
[316017596,1709326264979,-4510.65,0.00022136,2]
[316017597,1709326264988,-500.0,0.00022136,2]
[316017598,1709326264999,-500.0,0.00022136,2]
[316017599,1709326265009,-500.0,0.00022136,2]
[316017600,1709326265019,-5659.52,0.00022136,2]
[316017601,1709326265029,-692.99,0.00022136,2]
[316017602,1709326265039,-570.89,0.00022136,2]
[316017603,1709326265048,-614.77416739,0.00022136,2]
[316017604,1709326265057,-799.41,0.00022136,2]
[316017605,1709326265067,-500.0,0.00022136,2]
[316017606,1709326265077,-7796.29,0.00022136,2]
[316017607,1709326265087,-500.0,0.00022136,2]
[316017608,1709326265097,-500.0,0.00022136,2]
[316017609,1709326265107,-500.0,0.00022136,2]
[316017610,1709326265117,-6476.17,0.00022136,2]
[316017611,1709326265126,-523.02,0.00022136,2]
[316017612,1709326265136,-500.0,0.00022136,2]
[316017613,1709326265146,-3013.84,0.00022136,2]
[316017614,1709326265155,-1321.12,0.00022136,2]
[316017615,1709326265165,-1065.7,0.00022136,2]
[316017616,1709326265175,-1380.97,0.00022136,2]
[316017617,1709326265185,-731.52,0.00022136,2]
[316017618,1709326265195,-637.88,0.00022136,2]
[316017619,1709326265205,-600.6937328,0.00022136,2]
[316017620,1709326265215,-599.33,0.00022136,2]
[316017621,1709326265227,-2089.41,0.00022136,2]
[316017622,1709326265239,-9598.11,0.00022136,2]
[316017623,1709326265250,-2359.76,0.00022136,2]
[316017624,1709326265262,-6057.78,0.00022136,2]
[316017625,1709326265272,-500.0,0.00022136,2]
[316017626,1709326265283,-6067.78,0.00022136,2]
[316017627,1709326265293,-1158.19,0.00022136,2]
[316017628,1709326265303,-995.46,0.00022136,2]
[316017629,1709326265313,-500.0,0.00022136,2]
[316017630,1709326265322,-500.0,0.00022136,2]
[316017631,1709326265333,-254.14930927,0.00022136,2]
[316017632,1709326265343,-4691.09,0.00022136,2]
[316017633,1709326265357,-50000.0,0.00022144,2]
[316017634,1709326265367,-5633.04247301,0.00022144,2]
[316017635,1709326265377,-36722.45243314,0.00022144,2]
[316017636,1709326265388,-50000.0,0.00022144,2]
[316017637,1709326265399,-5835.11820206,0.00022144,2]
[316017638,1709326265409,-2637.07,0.00022164,3]
[316017639,1709326265419,-150.0,0.00022168,2]
[316017640,1709326265430,-156.08564216,0.0002219,2]
[316017641,1709326265441,-150.0,0.00022193,2]
[316017642,1709326265450,-158.76,0.00022197,2]
[316017643,1709326265460,-566.0,0.000222,2]
[316017644,1709326265470,-150.0,0.00022212,2]
[316017645,1709326265480,-150.0,0.00022229,2]
[316017646,1709326265490,-150.0,0.00022238,2]
[316017647,1709326265500,-150.0,0.00022245,2]
[316017648,1709326265510,-500.0,0.00022246,2]
[316017649,1709326265520,-536.31867415,0.00022246,2]
[316017650,1709326265530,-546.70026326,0.00022246,2]
[316017651,1709326265540,-500.0,0.00022246,2]
[316017652,1709326265549,-500.0,0.00022246,2]
[316017653,1709326265558,-538.21929811,0.00022246,2]
[316017654,1709326265568,-500.0,0.00022246,2]
[316017655,1709326265578,-500.0,0.00022246,2]
[316017656,1709326265587,-524.97731194,0.00022246,2]
[316017657,1709326265597,-500.0,0.00022246,2]
[316017658,1709326265607,-500.0,0.00022246,2]
[316017659,1709326265617,-477.87459689,0.00022246,2]
[316017660,1709326265626,-500.0,0.00022246,2]
[316017661,1709326265636,-500.0,0.00022246,2]
[316017662,1709326265646,-500.0,0.00022246,2]
[316017663,1709326265655,-500.0,0.00022246,2]
[316017664,1709326265665,-500.0,0.00022246,2]
[316017665,1709326265674,-500.0,0.00022246,2]
[316017666,1709326265685,-500.0,0.00022246,2]
[316017667,1709326265694,-500.0,0.00022246,2]
[316017668,1709326265703,-500.0,0.00022246,2]
[316017669,1709326265713,-500.0,0.00022246,2]
[316017670,1709326265723,-500.0,0.00022246,2]
[316017671,1709326265733,-500.0,0.00022246,2]
[316017672,1709326265743,-500.0,0.00022246,2]
[316017673,1709326265754,-500.0,0.00022246,2]
[316017674,1709326265763,-500.0,0.00022246,2]
[316017675,1709326265773,-605.40485254,0.00022246,2]
[316017676,1709326265783,-500.0,0.00022246,2]
[316017677,1709326265792,-500.0,0.00022246,2]
[316017678,1709326265802,-500.0,0.00022246,2]
[316017679,1709326265812,-500.0,0.00022246,2]
[316017680,1709326265821,-500.0,0.00022246,2]
[316017681,1709326265831,-500.0,0.00022246,2]
[316017682,1709326265841,-500.0,0.00022246,2]
[316017683,1709326265850,-500.0,0.00022246,2]
[316017684,1709326265860,-500.0,0.00022246,2]
[316017685,1709326265869,-500.0,0.00022246,2]
[316017686,1709326265879,-608.40589633,0.00022246,2]
[316017687,1709326265888,-500.0,0.00022246,2]
[316017688,1709326265898,-500.0,0.00022246,2]
[316017689,1709326265907,-500.0,0.00022246,2]
[316017690,1709326265916,-500.0,0.00022246,2]
[316017691,1709326265926,-500.0,0.00022246,2]
[316017692,1709326265936,-500.0,0.00022246,2]
[316017693,1709326265946,-500.0,0.00022246,2]
[316017694,1709326265956,-500.0,0.00022246,2]
[316017695,1709326265965,-500.0,0.00022246,2]
[316017696,1709326265975,-500.0,0.00022246,2]
[316017697,1709326265985,-448.11519469,0.00022246,2]
[316017698,1709326265996,-500.0,0.00022246,2]
[316017699,1709326266007,-314.01203778,0.00022246,2]
[316017700,1709326266017,-500.0,0.00022246,2]
[316017701,1709326266027,-500.0,0.00022246,2]
[316017702,1709326266037,-500.0,0.00022246,2]
[316017703,1709326266047,-500.0,0.00022246,2]
[316017704,1709326266057,-500.0,0.00022246,2]
[316017705,1709326266066,-500.0,0.00022246,2]
[316017706,1709326266076,-500.0,0.00022246,2]
[316017707,1709326266085,-500.0,0.00022246,2]
[316017708,1709326266095,-500.0,0.00022246,2]
[316017709,1709326266104,-500.0,0.00022246,2]
[316017710,1709326266114,-500.0,0.00022246,2]
[316017711,1709326266123,-500.0,0.00022246,2]
[316017712,1709326266133,-500.0,0.00022246,2]
[316017713,1709326266143,-500.0,0.00022246,2]
[316017714,1709326266154,-500.0,0.00022246,2]
[316017715,1709326266164,-500.0,0.00022246,2]
[316017716,1709326266175,-500.0,0.00022246,2]
[316017717,1709326266185,-500.0,0.00022246,2]
[316017718,1709326266195,-500.0,0.00022246,2]
[316017719,1709326266205,-649.06,0.00022246,2]
[316017720,1709326266215,-500.0,0.00022246,2]
[316017721,1709326266225,-500.0,0.00022246,2]
[316017722,1709326266236,-500.0,0.00022246,2]
[316017723,1709326266247,-500.0,0.00022246,2]
[316017724,1709326266259,-500.0,0.00022246,2]
[316017725,1709326266269,-500.0,0.00022246,2]
[316017726,1709326266279,-500.0,0.00022246,2]
[316017727,1709326266289,-500.0,0.00022246,2]
[316017728,1709326266299,-500.0,0.00022246,2]
[316017729,1709326266310,-500.0,0.00022246,2]
[316017730,1709326266320,-500.0,0.00022246,2]
[316017731,1709326266330,-500.0,0.00022246,2]
[316017732,1709326266340,-500.0,0.00022246,2]
[316017733,1709326266351,-500.0,0.00022246,2]
[316017734,1709326266364,-500.0,0.00022246,2]
[316017735,1709326266375,-500.0,0.00022246,2]
[316017736,1709326266385,-500.0,0.00022246,2]
[316017737,1709326266396,-500.0,0.00022246,2]
[316017738,1709326266407,-500.0,0.00022246,2]
[316017739,1709326266418,-500.0,0.00022246,2]
[316017740,1709326266428,-706.84,0.00022246,2]
[316017741,1709326266439,-500.0,0.00022246,2]
[316017742,1709326266451,-500.0,0.00022246,2]
[316017743,1709326266463,-500.0,0.00022246,2]
[316017744,1709326266474,-500.0,0.00022246,2]
[316017745,1709326266485,-548.65,0.00022246,2]
[316017746,1709326266497,-500.0,0.00022246,2]
[316017747,1709326266510,-500.0,0.00022246,2]
[316017748,1709326266522,-500.0,0.00022246,2]
[316017749,1709326266533,-500.0,0.00022246,2]
[316017750,1709326266545,-500.0,0.00022246,2]
[316017751,1709326266555,-500.0,0.00022246,2]
[316017752,1709326266566,-500.0,0.00022246,2]
[316017753,1709326266576,-500.0,0.00022246,2]
[316017754,1709326266586,-500.0,0.00022246,2]
[316017755,1709326266596,-500.0,0.00022246,2]
[316017756,1709326266607,-500.0,0.00022246,2]
[316017757,1709326266618,-947.83,0.00022246,2]
[316017758,1709326266628,-500.0,0.00022246,2]
[316017759,1709326266639,-500.0,0.00022246,2]
[316017760,1709326266649,-500.0,0.00022246,2]
[316017761,1709326266659,-500.0,0.00022246,2]
[316017762,1709326266669,-500.0,0.00022246,2]
[316017763,1709326266680,-858.32,0.00022246,2]
[316017764,1709326266690,-500.0,0.00022246,2]
[316017765,1709326266701,-500.0,0.00022246,2]
[316017766,1709326266712,-500.0,0.00022246,2]
[316017767,1709326266723,-500.0,0.00022246,2]
[316017768,1709326266733,-500.0,0.00022246,2]
[316017769,1709326266743,-579.45,0.00022246,2]
[316017770,1709326266754,-500.0,0.00022246,2]
[316017771,1709326266765,-500.0,0.00022246,2]
[316017772,1709326266775,-500.0,0.00022246,2]
[316017773,1709326266786,-500.0,0.00022246,2]
[316017774,1709326266795,-500.0,0.00022246,2]
[316017775,1709326266805,-815.58,0.00022246,2]
[316017776,1709326266815,-500.0,0.00022246,2]
[316017777,1709326266826,-500.0,0.00022246,2]
[316017778,1709326266838,-500.0,0.00022246,2]
[316017779,1709326266848,-500.0,0.00022246,2]
[316017780,1709326266863,-500.0,0.00022246,2]
[316017781,1709326266874,-659.97,0.00022246,2]
[316017782,1709326266884,-500.0,0.00022246,2]
[316017783,1709326266894,-500.0,0.00022246,2]
[316017784,1709326266904,-571.62,0.00022246,2]
[316017785,1709326266914,-500.0,0.00022246,2]
[316017786,1709326266926,-786.82,0.00022246,2]
[316017787,1709326266937,-500.0,0.00022246,2]
[316017788,1709326266946,-500.0,0.00022246,2]
[316017789,1709326266956,-500.0,0.00022246,2]
[316017790,1709326266965,-500.0,0.00022246,2]
[316017791,1709326266975,-500.0,0.00022246,2]
[316017792,1709326266984,-500.0,0.00022246,2]
[316017793,1709326266994,-500.0,0.00022246,2]
[316017794,1709326267007,-500.0,0.00022246,2]
[316017795,1709326267020,-626.66,0.00022246,2]
[316017796,1709326267043,-840.97,0.00022246,2]
[316017797,1709326267055,-566.2,0.00022246,2]
[316017798,1709326267072,-500.0,0.00022246,2]
[316017799,1709326267086,-500.0,0.00022246,2]
[316017800,1709326267106,-500.0,0.00022246,2]
[316017801,1709326267121,-500.0,0.00022246,2]
[316017802,1709326267135,-896.77,0.00022246,2]
[316017803,1709326267145,-610.84,0.00022246,2]
[316017804,1709326267168,-500.0,0.00022246,2]
[316017805,1709326267185,-560.49686561,0.00022246,2]
[316017806,1709326267199,-715.55,0.00022246,2]
[316017807,1709326267212,-500.0,0.00022246,2]
[316017808,1709326267234,-500.0,0.00022246,2]
[316017809,1709326267248,-1311.49,0.00022246,2]
[316017810,1709326267265,-607.55,0.00022246,2]
[316017811,1709326267294,-500.0,0.00022246,2]
[316017812,1709326267305,-500.0,0.00022246,2]
[316017813,1709326267324,-500.0,0.00022246,2]
[316017814,1709326267353,-500.0,0.00022246,2]
[316017815,1709326267375,-500.0,0.00022246,2]
[316017816,1709326267392,-500.0,0.00022246,2]
[316017817,1709326267403,-500.0,0.00022246,2]
[316017818,1709326267414,-500.0,0.00022246,2]
[316017819,1709326267425,-500.0,0.00022246,2]
[316017820,1709326267435,-550.28,0.00022246,2]
[316017821,1709326267446,-600.81,0.00022246,2]
[316017822,1709326267457,-500.0,0.00022246,2]
[316017823,1709326267467,-500.0,0.00022246,2]
[316017824,1709326267478,-500.0,0.00022246,2]
[316017825,1709326267489,-500.0,0.00022246,2]
[316017826,1709326267500,-500.0,0.00022246,2]
[316017827,1709326267515,-500.0,0.00022246,2]
[316017828,1709326267526,-500.0,0.00022246,2]
[316017829,1709326267537,-500.0,0.00022246,2]
[316017830,1709326267547,-500.0,0.00022246,2]
[316017831,1709326267558,-500.0,0.00022246,2]
[316017832,1709326267569,-500.0,0.00022246,2]
[316017833,1709326267579,-500.0,0.00022246,2]
[316017834,1709326267589,-939.4,0.00022246,2]
[316017835,1709326267599,-500.0,0.00022246,2]
[316017836,1709326267609,-500.0,0.00022246,2]
[316017837,1709326267619,-500.0,0.00022246,2]
[316017838,1709326267629,-500.0,0.00022246,2]
[316017839,1709326267639,-476.09548802,0.00022246,2]
[316017840,1709326267649,-500.0,0.00022246,2]
[316017841,1709326267658,-500.0,0.00022246,2]
[316017842,1709326267668,-500.0,0.00022246,2]
[316017843,1709326267678,-500.0,0.00022246,2]
[316017844,1709326267688,-218.59697265,0.00022246,2]
[316017845,1709326267697,-500.0,0.00022246,2]
[316017846,1709326267707,-500.0,0.00022246,2]
[316017847,1709326267716,-500.0,0.00022246,2]
[316017848,1709326267726,-500.0,0.00022246,2]
[316017849,1709326267736,-555.19,0.00022246,2]
[316017850,1709326267746,-500.0,0.00022246,2]
[316017851,1709326267758,-500.0,0.00022246,2]
[316017852,1709326267768,-500.0,0.00022246,2]
[316017853,1709326267777,-500.0,0.00022246,2]
[316017854,1709326267787,-500.0,0.00022246,2]
[316017855,1709326267797,-896.7,0.00022246,2]
[316017856,1709326267807,-500.0,0.00022246,2]
[316017857,1709326267818,-500.0,0.00022246,2]
[316017858,1709326267828,-693.65,0.00022246,2]
[316017859,1709326267838,-478.64,0.00022246,2]
[316017860,1709326267848,-500.0,0.00022246,2]
[316017861,1709326267857,-500.0,0.00022246,2]
[316017862,1709326267867,-500.0,0.00022246,2]
[316017863,1709326267878,-500.0,0.00022246,2]
[316017864,1709326267888,-500.0,0.00022246,2]
[316017865,1709326267898,-629.71,0.00022246,2]
[316017866,1709326267909,-500.0,0.00022246,2]
[316017867,1709326267919,-500.0,0.00022246,2]
[316017868,1709326267929,-630.41,0.00022246,2]
[316017869,1709326267940,-584.54,0.00022246,2]
[316017870,1709326267950,-500.0,0.00022246,2]
[316017871,1709326267960,-294.81336586,0.00022246,2]
[316017872,1709326267970,-500.0,0.00022246,2]
[316017873,1709326267980,-500.0,0.00022246,2]
[316017874,1709326267990,-500.0,0.00022246,2]
[316017875,1709326268000,-500.0,0.00022246,2]
[316017876,1709326268012,-500.0,0.00022246,2]
[316017877,1709326268022,-832.14,0.00022246,2]
[316017878,1709326268032,-491.96,0.00022246,2]
[316017879,1709326268043,-500.0,0.00022246,2]
[316017880,1709326268053,-500.0,0.00022246,2]
[316017881,1709326268063,-500.0,0.00022246,2]
[316017882,1709326268073,-500.0,0.00022246,2]
[316017883,1709326268083,-500.0,0.00022246,2]
[316017884,1709326268093,-500.0,0.00022246,2]
[316017885,1709326268103,-500.0,0.00022246,2]
[316017886,1709326268113,-500.0,0.00022246,2]
[316017887,1709326268123,-500.0,0.00022246,2]
[316017888,1709326268133,-500.0,0.00022246,2]
[316017889,1709326268142,-500.0,0.00022246,2]
[316017890,1709326268152,-500.0,0.00022246,2]
[316017891,1709326268162,-500.0,0.00022246,2]
[316017892,1709326268172,-500.0,0.00022246,2]
[316017893,1709326268181,-500.0,0.00022246,2]
[316017894,1709326268192,-500.0,0.00022246,2]
[316017895,1709326268202,-500.0,0.00022246,2]
[316017896,1709326268213,-150.0,0.00022246,2]
[316017897,1709326268223,-500.0,0.00022246,2]
[316017898,1709326268234,-500.0,0.00022246,2]
[316017899,1709326268245,-1200.51,0.00022246,2]
[316017900,1709326268257,-500.0,0.00022246,2]
[316017901,1709326268268,-500.0,0.00022246,2]
[316017902,1709326268279,-500.0,0.00022246,2]
[316017903,1709326268289,-500.0,0.00022246,2]
[316017904,1709326268299,-635.32,0.00022246,2]
[316017905,1709326268309,-500.0,0.00022246,2]
[316017906,1709326268319,-500.0,0.00022246,2]
[316017907,1709326268329,-500.0,0.00022246,2]
[316017908,1709326268339,-500.0,0.00022246,2]
[316017909,1709326268351,-922.78,0.00022246,2]
[316017910,1709326268362,-500.0,0.00022246,2]
[316017911,1709326268373,-628.01,0.00022246,2]
[316017912,1709326268383,-866.97,0.00022246,2]
[316017913,1709326268395,-541.25,0.00022246,2]
[316017914,1709326268404,-500.0,0.00022246,2]
[316017915,1709326268414,-500.0,0.00022246,2]
[316017916,1709326268427,-615.71,0.00022246,2]
[316017917,1709326268437,-500.0,0.00022246,2]
[316017918,1709326268447,-831.11,0.00022246,2]
[316017919,1709326268458,-500.0,0.00022246,2]
[316017920,1709326268468,-576.1,0.00022246,2]
[316017921,1709326268479,-500.0,0.00022246,2]
[316017922,1709326268490,-500.0,0.00022246,2]
[316017923,1709326268501,-1218.11,0.00022246,2]
[316017924,1709326268512,-500.0,0.00022246,2]
[316017925,1709326268523,-500.0,0.00022246,2]
[316017926,1709326268532,-500.0,0.00022246,2]
[316017927,1709326268543,-500.0,0.00022246,2]
[316017928,1709326268553,-500.0,0.00022246,2]
[316017929,1709326268563,-500.0,0.00022246,2]
[316017930,1709326268574,-500.0,0.00022246,2]
[316017931,1709326268584,-568.15,0.00022246,2]
[316017932,1709326268594,-500.0,0.00022246,2]
[316017933,1709326268604,-500.0,0.00022246,2]
[316017934,1709326268614,-500.0,0.00022246,2]
[316017935,1709326268624,-1166.34,0.00022246,2]
[316017936,1709326268634,-500.0,0.00022246,2]
[316017937,1709326268643,-500.0,0.00022246,2]
[316017938,1709326268654,-500.0,0.00022246,2]
[316017939,1709326268664,-500.0,0.00022246,2]
[316017940,1709326268674,-585.48,0.00022246,2]
[316017941,1709326268685,-500.0,0.00022246,2]
[316017942,1709326268695,-561.29763824,0.00022246,2]
[316017943,1709326268705,-500.0,0.00022246,2]
[316017944,1709326268714,-500.0,0.00022246,2]
[316017945,1709326268725,-500.0,0.00022246,2]
[316017946,1709326268735,-500.0,0.00022246,2]
[316017947,1709326268746,-510.68,0.00022246,2]
[316017948,1709326268757,-1486.83,0.00022246,2]
[316017949,1709326268767,-500.0,0.00022246,2]
[316017950,1709326268776,-1115.19,0.00022246,2]
[316017951,1709326268786,-500.0,0.00022246,2]
[316017952,1709326268796,-500.0,0.00022246,2]
[316017953,1709326268806,-500.0,0.00022246,2]
[316017954,1709326268820,-500.0,0.00022246,2]
[316017955,1709326268830,-582.13,0.00022246,2]
[316017956,1709326268852,-6194.65,0.00022246,2]
[316017957,1709326268862,-503.50666414,0.00022246,2]
[316017958,1709326268873,-500.0,0.00022246,2]
[316017959,1709326268883,-500.0,0.00022246,2]
[316017960,1709326268897,-500.0,0.00022246,2]
[316017961,1709326268910,-659.76,0.00022246,2]
[316017962,1709326268921,-16855.01,0.00022246,2]
[316017963,1709326268933,-500.0,0.00022246,2]
[316017964,1709326268943,-656.81,0.00022246,2]
[316017965,1709326268954,-500.0,0.00022246,2]
[316017966,1709326268964,-500.0,0.00022246,2]